[Event "Late-Titled-Tuesday-Blitz-March-12-2024"]
[Site "Chess.com"]
[Date "2024.03.12"]
[Round "10"]
[White "BabageldiAnnaberdiyev"]
[Black "yobdc"]
[Result "0-1"]
[WhiteElo "2646"]
[BlackElo "2583"]
[TimeControl "180+1"]
[EndTime "15:51:21 PDT"]
[Termination "yobdc won by resignation"]

1. e4 {[%clk 0:03:00.9]} 1... c6 {[%clk 0:02:59.5]} 2. d4 {[%clk 0:03:00.4]}
2... d5 {[%clk 0:02:59.9]} 3. Nd2 {[%clk 0:03:01]} 3... dxe4 {[%clk 0:02:59.9]}
4. Nxe4 {[%clk 0:03:01.9]} 4... Nf6 {[%clk 0:03:00.4]} 5. Nxf6+ {[%clk
0:03:02.1]} 5... exf6 {[%clk 0:03:01.3]} 6. Bc4 {[%clk 0:03:02.1]} 6... Bd6
{[%clk 0:02:59.5]} 7. Qe2+ {[%clk 0:03:02]} 7... Qe7 {[%clk 0:02:58.9]} 8. Qxe7+
{[%clk 0:03:01.6]} 8... Kxe7 {[%clk 0:02:59.8]} 9. Ne2 {[%clk 0:03:01.8]} 9...
Re8 {[%clk 0:02:59.7]} 10. Bf4 {[%clk 0:03:00.8]} 10... Bxf4 {[%clk 0:02:56.9]}
11. Nxf4 {[%clk 0:03:01.7]} 11... Kd6+ {[%clk 0:02:52.7]} 12. Kd2 {[%clk
0:03:01.6]} 12... Be6 {[%clk 0:02:50.7]} 13. Bd3 {[%clk 0:03:00.9]} 13... g6
{[%clk 0:02:44.1]} 14. c4 {[%clk 0:03:00.1]} 14... Nd7 {[%clk 0:02:40.3]} 15.
Rhe1 {[%clk 0:02:58.6]} 15... c5 {[%clk 0:02:12]} 16. d5 {[%clk 0:02:55.7]}
16... Bf5 {[%clk 0:02:12.2]} 17. Bxf5 {[%clk 0:02:52.4]} 17... gxf5 {[%clk
0:02:13.1]} 18. Nd3 {[%clk 0:02:52.5]} 18... Re4 {[%clk 0:02:02.6]} 19. b3
{[%clk 0:02:50.2]} 19... Ne5 {[%clk 0:01:54.3]} 20. Nxe5 {[%clk 0:02:46.9]}
20... fxe5 {[%clk 0:01:42.2]} 21. f3 {[%clk 0:02:46.7]} 21... Rd4+ {[%clk
0:01:40.9]} 22. Kc3 {[%clk 0:02:44.7]} 22... f4 {[%clk 0:01:33.6]} 23. a4 {[%clk
0:02:42.7]} 23... Rg8 {[%clk 0:01:33.3]} 24. Re2 {[%clk 0:02:41.6]} 24... a5
{[%clk 0:01:29.3]} 25. Rae1 {[%clk 0:02:41.7]} 25... f6 {[%clk 0:01:29.5]} 26.
Kc2 {[%clk 0:02:27.9]} 26... h5 {[%clk 0:01:29.2]} 27. Rd1 {[%clk 0:02:27.3]}
27... h4 {[%clk 0:01:28.5]} 28. h3 {[%clk 0:02:26.6]} 28... f5 {[%clk
0:01:07.2]} 29. Rxd4 {[%clk 0:02:13]} 29... cxd4 {[%clk 0:01:08.1]} 30. Kd3
{[%clk 0:02:12.8]} 30... b6 {[%clk 0:01:06]} 31. Kc2 {[%clk 0:02:10]} 31... Re8
{[%clk 0:01:00.1]} 32. Kd3 {[%clk 0:02:10]} 32... Re7 {[%clk 0:01:00.2]} 33. Re1
{[%clk 0:02:09]} 33... Rg7 {[%clk 0:00:56.7]} 34. Re2 {[%clk 0:02:08.7]} 34...
Rg3 {[%clk 0:00:51.7]} 35. Kc2 {[%clk 0:02:07.9]} 35... e4 {[%clk 0:00:48.1]}
36. Rf2 {[%clk 0:01:57.4]} 36... d3+ {[%clk 0:00:33.5]} 37. Kc3 {[%clk
0:01:55.7]} 37... e3 {[%clk 0:00:32.9]} 38. Ra2 {[%clk 0:01:52.6]} 38... d2
{[%clk 0:00:32.1]} 0-1

[Event "Late-Titled-Tuesday-Blitz-March-12-2024"]
[Site "Chess.com"]
[Date "2024.03.12"]
[Round "10"]
[White "Defenstrator"]
[Black "IngOscarArdila"]
[Result "1-0"]
[WhiteElo "2428"]
[BlackElo "2339"]
[TimeControl "180+1"]
[EndTime "15:51:21 PDT"]
[Termination "Defenstrator won on time"]

1. Nf3 {[%clk 0:03:00.4]} 1... Nf6 {[%clk 0:02:58.8]} 2. Ne5 {[%clk 0:02:58]}
2... d6 {[%clk 0:02:54.9]} 3. Nxf7 {[%clk 0:02:57.9]} 3... Kxf7 {[%clk
0:02:54.7]} 4. e4 {[%clk 0:02:58.2]} 4... e5 {[%clk 0:02:54.5]} 5. Nc3 {[%clk
0:02:54.8]} 5... Be6 {[%clk 0:02:53.9]} 6. f4 {[%clk 0:02:53]} 6... exf4 {[%clk
0:02:37.3]} 7. d4 {[%clk 0:02:52.1]} 7... Be7 {[%clk 0:02:35.4]} 8. Bxf4 {[%clk
0:02:45.6]} 8... Re8 {[%clk 0:02:34.2]} 9. Bd3 {[%clk 0:02:45.7]} 9... Kg8
{[%clk 0:02:33.4]} 10. O-O {[%clk 0:02:37.8]} 10... Bg4 {[%clk 0:02:32.9]} 11.
Qe1 {[%clk 0:02:36.7]} 11... Nc6 {[%clk 0:02:31]} 12. Qh4 {[%clk 0:02:30.4]}
12... Qd7 {[%clk 0:00:12.1]} 13. h3 {[%clk 0:02:07.5]} 13... Be6 {[%clk
0:00:07.5]} 14. e5 {[%clk 0:02:04]} 14... dxe5 {[%clk 0:00:08]} 15. dxe5 {[%clk
0:01:59.5]} 15... Qd4+ {[%clk 0:00:08.1]} 16. Kh1 {[%clk 0:01:55.7]} 16... Nxe5
{[%clk 0:00:07.6]} 17. Nb5 {[%clk 0:01:45.1]} 17... Qb4 {[%clk 0:00:00.7]} 18.
a3 {[%clk 0:01:41.3]} 1-0

[Event "Late-Titled-Tuesday-Blitz-March-12-2024"]
[Site "Chess.com"]
[Date "2024.03.12"]
[Round "10"]
[White "ITheOnlyME"]
[Black "Alex_Banzea"]
[Result "1-0"]
[WhiteElo "2436"]
[BlackElo "2628"]
[TimeControl "180+1"]
[EndTime "15:51:25 PDT"]
[Termination "ITheOnlyME won by checkmate"]

1. d4 {[%clk 0:03:00.9]} 1... Nf6 {[%clk 0:02:59.9]} 2. Bf4 {[%clk 0:03:01.4]}
2... g6 {[%clk 0:02:59.8]} 3. Nc3 {[%clk 0:03:00.8]} 3... d5 {[%clk 0:03:00.2]}
4. e3 {[%clk 0:03:01.3]} 4... Bg7 {[%clk 0:03:00.4]} 5. h4 {[%clk 0:03:01.6]}
5... O-O {[%clk 0:02:51.2]} 6. h5 {[%clk 0:03:01.7]} 6... c5 {[%clk 0:02:45.9]}
7. hxg6 {[%clk 0:02:59.6]} 7... fxg6 {[%clk 0:02:46.8]} 8. dxc5 {[%clk
0:02:58.3]} 8... Nc6 {[%clk 0:02:44.2]} 9. Nf3 {[%clk 0:02:55.2]} 9... Qa5
{[%clk 0:02:31.1]} 10. Qd2 {[%clk 0:02:52.4]} 10... Qxc5 {[%clk 0:02:17.8]} 11.
Bc7 {[%clk 0:02:34.3]} 11... Ne4 {[%clk 0:02:00]} 12. Qxd5+ {[%clk 0:02:21]}
12... Qxd5 {[%clk 0:01:59.2]} 13. Nxd5 {[%clk 0:02:21.9]} 13... Bxb2 {[%clk
0:01:57.8]} 14. Rb1 {[%clk 0:02:21.9]} 14... Bg7 {[%clk 0:01:45.5]} 15. Bc4
{[%clk 0:02:22.2]} 15... e6 {[%clk 0:01:40.4]} 16. Nf4 {[%clk 0:02:14.5]} 16...
Bc3+ {[%clk 0:01:04.1]} 17. Ke2 {[%clk 0:02:08]} 17... Bf6 {[%clk 0:01:04.4]}
18. Nxe6 {[%clk 0:01:59.1]} 18... Bxe6 {[%clk 0:00:54.7]} 19. Bxe6+ {[%clk
0:01:58.6]} 19... Kh8 {[%clk 0:00:49.9]} 20. Rxb7 {[%clk 0:01:58.9]} 20... Nc3+
{[%clk 0:00:33.8]} 21. Kf1 {[%clk 0:01:52.2]} 21... a5 {[%clk 0:00:22.5]} 22.
Bxa5 {[%clk 0:01:38.7]} 22... Ra7 {[%clk 0:00:09.4]} 23. Rhxh7# {[%clk
0:01:37.2]} 1-0

[Event "Late-Titled-Tuesday-Blitz-March-12-2024"]
[Site "Chess.com"]
[Date "2024.03.12"]
[Round "10"]
[White "Perecke"]
[Black "Practical-Play"]
[Result "1-0"]
[WhiteElo "2624"]
[BlackElo "2474"]
[TimeControl "180+1"]
[EndTime "15:51:26 PDT"]
[Termination "Perecke won by resignation"]

1. e4 {[%clk 0:03:00.9]} 1... c5 {[%clk 0:02:52.9]} 2. Nf3 {[%clk 0:02:58.4]}
2... a6 {[%clk 0:02:52.9]} 3. c4 {[%clk 0:02:57.4]} 3... Nc6 {[%clk 0:02:51.8]}
4. Nc3 {[%clk 0:02:51.1]} 4... e5 {[%clk 0:02:46.1]} 5. g3 {[%clk 0:02:50.3]}
5... d6 {[%clk 0:02:44.6]} 6. Bg2 {[%clk 0:02:50.6]} 6... g6 {[%clk 0:02:36.4]}
7. O-O {[%clk 0:02:49.3]} 7... Bg7 {[%clk 0:02:36.9]} 8. d3 {[%clk 0:02:49.6]}
8... Nge7 {[%clk 0:02:32.3]} 9. Ne1 {[%clk 0:02:49.7]} 9... O-O {[%clk
0:02:30.5]} 10. Nc2 {[%clk 0:02:48]} 10... f5 {[%clk 0:02:21.8]} 11. exf5 {[%clk
0:02:45.1]} 11... gxf5 {[%clk 0:01:52.6]} 12. f4 {[%clk 0:02:44.9]} 12... Ng6
{[%clk 0:01:52.5]} 13. fxe5 {[%clk 0:02:41.9]} 13... Bxe5 {[%clk 0:01:36.9]} 14.
Nd5 {[%clk 0:02:37.6]} 14... Be6 {[%clk 0:01:29.3]} 15. Nf4 {[%clk 0:02:36.9]}
15... Nxf4 {[%clk 0:01:26.6]} 16. Bxf4 {[%clk 0:02:37.8]} 16... Qc7 {[%clk
0:01:03.4]} 17. Ne3 {[%clk 0:02:35.3]} 17... Bxb2 {[%clk 0:01:02.5]} 18. Rb1
{[%clk 0:02:33.8]} 18... Bd4 {[%clk 0:01:01.2]} 19. Kh1 {[%clk 0:02:33.5]} 19...
Rab8 {[%clk 0:00:44.9]} 20. Nd5 {[%clk 0:02:32.6]} 20... Bxd5 {[%clk 0:00:44.9]}
21. Bxd5+ {[%clk 0:02:33.5]} 21... Kh8 {[%clk 0:00:44.4]} 22. Qh5 {[%clk
0:02:32.6]} 22... Ne5 {[%clk 0:00:40.9]} 23. Bh6 {[%clk 0:02:27.4]} 23... Nxd3
{[%clk 0:00:20.5]} 24. Rxf5 {[%clk 0:02:23.7]} 24... Rxf5 {[%clk 0:00:19.2]} 25.
Qxf5 {[%clk 0:02:20.7]} 25... Nf2+ {[%clk 0:00:16.8]} 26. Kg2 {[%clk 0:02:19.8]}
26... Qe7 {[%clk 0:00:17.3]} 27. Rf1 {[%clk 0:02:12.8]} 27... b5 {[%clk
0:00:11.4]} 28. Bg5 {[%clk 0:01:56.4]} 28... Qf8 {[%clk 0:00:06.3]} 29. Rxf2
{[%clk 0:01:54.8]} 1-0

[Event "Late-Titled-Tuesday-Blitz-March-12-2024"]
[Site "Chess.com"]
[Date "2024.03.12"]
[Round "10"]
[White "Bryanl106"]
[Black "ContrVersia"]
[Result "0-1"]
[WhiteElo "2679"]
[BlackElo "2874"]
[TimeControl "180+1"]
[EndTime "15:51:52 PDT"]
[Termination "ContrVersia won by resignation"]

1. e4 {[%clk 0:02:58.4]} 1... c5 {[%clk 0:02:58.3]} 2. Nf3 {[%clk 0:02:57.4]}
2... a6 {[%clk 0:02:58.2]} 3. d4 {[%clk 0:02:57.8]} 3... cxd4 {[%clk 0:02:59.1]}
4. Nxd4 {[%clk 0:02:58.1]} 4... Nf6 {[%clk 0:02:59.5]} 5. Nc3 {[%clk 0:02:57.9]}
5... e5 {[%clk 0:02:59.9]} 6. Nf5 {[%clk 0:02:46.9]} 6... d5 {[%clk 0:02:59.8]}
7. Bg5 {[%clk 0:02:46.4]} 7... d4 {[%clk 0:02:59.7]} 8. Bxf6 {[%clk 0:02:36.2]}
8... Qxf6 {[%clk 0:02:56.3]} 9. Nd5 {[%clk 0:02:32.4]} 9... Qc6 {[%clk
0:02:54.6]} 10. Qf3 {[%clk 0:02:25.5]} 10... g6 {[%clk 0:02:35.2]} 11. Ng3
{[%clk 0:02:20.6]} 11... Bg7 {[%clk 0:02:35.1]} 12. Bd3 {[%clk 0:02:19.4]} 12...
h5 {[%clk 0:02:30.7]} 13. h3 {[%clk 0:02:11.9]} 13... Be6 {[%clk 0:02:30.3]} 14.
O-O {[%clk 0:02:11]} 14... Nd7 {[%clk 0:02:29.8]} 15. Rfe1 {[%clk 0:02:07.7]}
15... Nb6 {[%clk 0:02:14.7]} 16. Nf6+ {[%clk 0:01:59.4]} 16... Ke7 {[%clk
0:02:01.8]} 17. Nd5+ {[%clk 0:01:56.3]} 17... Nxd5 {[%clk 0:02:01.7]} 18. exd5
{[%clk 0:01:57.2]} 18... Bxd5 {[%clk 0:02:02.2]} 19. Be4 {[%clk 0:01:56.1]}
19... Rad8 {[%clk 0:02:00.2]} 20. Qa3+ {[%clk 0:01:53.2]} 20... Qd6 {[%clk
0:01:56.6]} 21. Qf3 {[%clk 0:01:49.8]} 21... Bxe4 {[%clk 0:01:49.7]} 22. Nxe4
{[%clk 0:01:49.2]} 22... Qc6 {[%clk 0:01:49.6]} 23. Qa3+ {[%clk 0:01:49.3]}
23... Ke8 {[%clk 0:01:44.7]} 24. f4 {[%clk 0:01:46.7]} 24... f5 {[%clk
0:01:37.2]} 25. Ng5 {[%clk 0:01:46]} 25... e4 {[%clk 0:01:34.3]} 26. Rad1 {[%clk
0:01:45.4]} 26... Rd7 {[%clk 0:01:28.5]} 27. Qb3 {[%clk 0:01:31.7]} 27... Qd5
{[%clk 0:01:25.4]} 28. c4 {[%clk 0:01:30]} 28... Qc6 {[%clk 0:01:22.9]} 29. c5
{[%clk 0:01:30.2]} 29... Qd5 {[%clk 0:01:16.3]} 30. Qb6 {[%clk 0:01:24.1]} 30...
Qc6 {[%clk 0:01:12]} 31. Qb3 {[%clk 0:01:23.5]} 31... Bf6 {[%clk 0:01:10.1]} 32.
Qg3 {[%clk 0:01:06.8]} 32... Kd8 {[%clk 0:01:03.7]} 33. b4 {[%clk 0:01:02]}
33... d3 {[%clk 0:01:01.2]} 34. Kh1 {[%clk 0:01:01.3]} 34... Kc8 {[%clk
0:00:59.6]} 35. Qe3 {[%clk 0:00:55.5]} 35... Rhd8 {[%clk 0:00:54.5]} 36. Qc1
{[%clk 0:00:50.5]} 36... d2 {[%clk 0:00:54.1]} 0-1

[Event "Late-Titled-Tuesday-Blitz-March-12-2024"]
[Site "Chess.com"]
[Date "2024.03.12"]
[Round "10"]
[White "Alphafischer2019"]
[Black "Msb2"]
[Result "0-1"]
[WhiteElo "2756"]
[BlackElo "3017"]
[TimeControl "180+1"]
[EndTime "15:51:53 PDT"]
[Termination "Msb2 won by resignation"]

1. Nf3 {[%clk 0:02:59.5]} 1... d5 {[%clk 0:02:58.7]} 2. g3 {[%clk 0:02:59.6]}
2... e6 {[%clk 0:02:59.1]} 3. Bg2 {[%clk 0:02:58.5]} 3... Nf6 {[%clk 0:03:00]}
4. O-O {[%clk 0:02:58.1]} 4... Bd6 {[%clk 0:03:00.6]} 5. d3 {[%clk 0:02:58.6]}
5... O-O {[%clk 0:03:01.2]} 6. Nbd2 {[%clk 0:02:59.2]} 6... Nc6 {[%clk
0:03:01.9]} 7. e4 {[%clk 0:02:59.8]} 7... dxe4 {[%clk 0:03:02.8]} 8. dxe4 {[%clk
0:03:00.3]} 8... e5 {[%clk 0:03:03.5]} 9. Qe2 {[%clk 0:02:59.8]} 9... b6 {[%clk
0:03:02.8]} 10. c3 {[%clk 0:02:59]} 10... a5 {[%clk 0:03:03.2]} 11. Rd1 {[%clk
0:02:56.4]} 11... Ba6 {[%clk 0:03:02.9]} 12. Nc4 {[%clk 0:02:57.1]} 12... Qe7
{[%clk 0:03:02.7]} 13. b3 {[%clk 0:02:56.8]} 13... Bc5 {[%clk 0:02:58.5]} 14.
Nh4 {[%clk 0:02:52.9]} 14... Qe6 {[%clk 0:02:54.9]} 15. Nf5 {[%clk 0:02:47.9]}
15... g6 {[%clk 0:02:53.7]} 16. Nfe3 {[%clk 0:02:41.4]} 16... Bxe3 {[%clk
0:02:40.2]} 17. Bxe3 {[%clk 0:02:27.8]} 17... Rad8 {[%clk 0:02:40.4]} 18. h3
{[%clk 0:02:20.9]} 18... Kg7 {[%clk 0:02:38.8]} 19. Bf1 {[%clk 0:02:13.7]} 19...
Nxe4 {[%clk 0:02:34.3]} 20. Qc2 {[%clk 0:02:08.5]} 20... Nf6 {[%clk 0:02:28.2]}
21. Rxd8 {[%clk 0:01:52]} 21... Rxd8 {[%clk 0:02:27.4]} 22. Nxe5 {[%clk
0:01:52.1]} 22... Nxe5 {[%clk 0:02:16.6]} 23. Bxa6 {[%clk 0:01:51.9]} 23... Qxh3
{[%clk 0:02:17.3]} 24. Be2 {[%clk 0:00:36.3]} 24... Neg4 {[%clk 0:02:01]} 25.
Bxg4 {[%clk 0:00:36.7]} 25... Nxg4 {[%clk 0:02:01.9]} 26. Re1 {[%clk 0:00:36.4]}
26... Qh2+ {[%clk 0:01:50.7]} 27. Kf1 {[%clk 0:00:36.4]} 27... Qh1+ {[%clk
0:01:38]} 28. Ke2 {[%clk 0:00:36.1]} 28... Nxe3 {[%clk 0:01:38.9]} 29. Qc1
{[%clk 0:00:23.8]} 29... Qh5+ {[%clk 0:01:31.4]} 30. Kxe3 {[%clk 0:00:22.9]}
30... Qf5 {[%clk 0:01:32.2]} 31. Qb1 {[%clk 0:00:14.6]} 31... Re8+ {[%clk
0:01:29.8]} 32. Kd4 {[%clk 0:00:15.2]} 32... Qxf2+ {[%clk 0:01:27.9]} 33. Kc4
{[%clk 0:00:15.8]} 33... Rxe1 {[%clk 0:01:27.2]} 0-1

[Event "Late-Titled-Tuesday-Blitz-March-12-2024"]
[Site "Chess.com"]
[Date "2024.03.12"]
[Round "10"]
[White "ShahMatKanal"]
[Black "Ready4abattle"]
[Result "0-1"]
[WhiteElo "2475"]
[BlackElo "2414"]
[TimeControl "180+1"]
[EndTime "15:51:56 PDT"]
[Termination "Ready4abattle won by resignation"]

1. b4 {[%clk 0:03:00.9]} 1... e6 {[%clk 0:02:50.8]} 2. Bb2 {[%clk 0:03:00.7]}
2... Nf6 {[%clk 0:02:51.3]} 3. b5 {[%clk 0:02:59.5]} 3... d5 {[%clk 0:02:51.2]}
4. a4 {[%clk 0:02:59.2]} 4... Bd6 {[%clk 0:02:49.4]} 5. e3 {[%clk 0:02:58.7]}
5... O-O {[%clk 0:02:49.4]} 6. f4 {[%clk 0:02:58.4]} 6... Nbd7 {[%clk
0:02:48.8]} 7. Nf3 {[%clk 0:02:58.2]} 7... c5 {[%clk 0:02:45.5]} 8. g4 {[%clk
0:02:50.9]} 8... Nxg4 {[%clk 0:02:37.1]} 9. Rg1 {[%clk 0:02:40.9]} 9... Ngf6
{[%clk 0:02:35.2]} 10. Qe2 {[%clk 0:01:58.6]} 10... Qe7 {[%clk 0:02:30.6]} 11.
Qg2 {[%clk 0:01:57.2]} 11... g6 {[%clk 0:02:31.1]} 12. Ne5 {[%clk 0:01:49.5]}
12... Bxe5 {[%clk 0:02:22.5]} 13. fxe5 {[%clk 0:01:49.2]} 13... Nh5 {[%clk
0:02:22.9]} 14. Be2 {[%clk 0:01:39.3]} 14... Qh4+ {[%clk 0:02:21.1]} 15. Kd1
{[%clk 0:01:37.9]} 15... Ng7 {[%clk 0:02:05.2]} 16. a5 {[%clk 0:01:24.1]} 16...
f6 {[%clk 0:02:00.8]} 17. exf6 {[%clk 0:01:15.5]} 17... Nxf6 {[%clk 0:02:01.7]}
18. Nc3 {[%clk 0:01:13.9]} 18... Bd7 {[%clk 0:01:58.5]} 19. Ra4 {[%clk
0:01:12.8]} 19... Qh6 {[%clk 0:01:32.1]} 20. Rf4 {[%clk 0:01:02.4]} 20... e5
{[%clk 0:01:11.4]} 21. Rxf6 {[%clk 0:00:57]} 21... Rxf6 {[%clk 0:01:12.3]} 22.
Qxd5+ {[%clk 0:00:54.5]} 22... Be6 {[%clk 0:01:08.8]} 23. Qxb7 {[%clk
0:00:52.6]} 23... Rd8 {[%clk 0:01:03.6]} 24. b6 {[%clk 0:00:44.1]} 24... Qxe3
{[%clk 0:00:59.7]} 25. Bd3 {[%clk 0:00:29.2]} 25... Qxg1+ {[%clk 0:00:59]} 26.
Ke2 {[%clk 0:00:28.1]} 26... Bg4+ {[%clk 0:00:55]} 0-1

[Event "Late-Titled-Tuesday-Blitz-March-12-2024"]
[Site "Chess.com"]
[Date "2024.03.12"]
[Round "10"]
[White "Slovak_fighter2000"]
[Black "Rinqed222"]
[Result "0-1"]
[WhiteElo "2598"]
[BlackElo "2404"]
[TimeControl "180+1"]
[EndTime "15:52:01 PDT"]
[Termination "Rinqed222 won by checkmate"]

1. c4 {[%clk 0:02:58.5]} 1... Nf6 {[%clk 0:02:59.6]} 2. Nc3 {[%clk 0:02:58.7]}
2... g6 {[%clk 0:02:59.8]} 3. d4 {[%clk 0:02:58.7]} 3... Bg7 {[%clk 0:03:00]} 4.
e4 {[%clk 0:02:56.4]} 4... d6 {[%clk 0:03:00.5]} 5. Be2 {[%clk 0:02:52.8]} 5...
O-O {[%clk 0:03:00.2]} 6. Nf3 {[%clk 0:02:50.2]} 6... e5 {[%clk 0:02:59]} 7. Be3
{[%clk 0:02:50.2]} 7... Ng4 {[%clk 0:02:58.7]} 8. Bg5 {[%clk 0:02:50.1]} 8... f6
{[%clk 0:02:59.2]} 9. Bh4 {[%clk 0:02:50.3]} 9... Nc6 {[%clk 0:02:58.3]} 10. d5
{[%clk 0:02:50.1]} 10... Ne7 {[%clk 0:02:57.6]} 11. Nd2 {[%clk 0:02:49.9]} 11...
f5 {[%clk 0:02:57.7]} 12. O-O {[%clk 0:02:37.1]} 12... a6 {[%clk 0:02:35]} 13.
Bxg4 {[%clk 0:02:19.1]} 13... fxg4 {[%clk 0:02:34.7]} 14. Re1 {[%clk 0:02:19.6]}
14... h6 {[%clk 0:02:26.1]} 15. Nf1 {[%clk 0:02:13.1]} 15... g5 {[%clk
0:02:25.6]} 16. Bg3 {[%clk 0:02:12.9]} 16... Ng6 {[%clk 0:02:22.2]} 17. Ne3
{[%clk 0:02:05.6]} 17... h5 {[%clk 0:02:21.8]} 18. h3 {[%clk 0:01:49.1]} 18...
h4 {[%clk 0:02:09.9]} 19. Bh2 {[%clk 0:01:46.4]} 19... gxh3 {[%clk 0:02:10]} 20.
g3 {[%clk 0:01:41.6]} 20... Qf6 {[%clk 0:02:04.2]} 21. Qe2 {[%clk 0:01:36]}
21... Bd7 {[%clk 0:01:54.4]} 22. Rf1 {[%clk 0:01:22.1]} 22... Rf7 {[%clk
0:01:49.6]} 23. b4 {[%clk 0:01:14.7]} 23... Raf8 {[%clk 0:01:47.3]} 24. c5
{[%clk 0:01:11.6]} 24... Nf4 {[%clk 0:01:10.3]} 25. gxf4 {[%clk 0:00:35.3]}
25... gxf4 {[%clk 0:01:00.7]} 26. Nf5 {[%clk 0:00:27.1]} 26... Bxf5 {[%clk
0:00:57.3]} 27. exf5 {[%clk 0:00:26.9]} 27... Qg5+ {[%clk 0:00:57.5]} 28. Kh1
{[%clk 0:00:26.5]} 28... Qg2# {[%clk 0:00:57.6]} 0-1

[Event "Late-Titled-Tuesday-Blitz-March-12-2024"]
[Site "Chess.com"]
[Date "2024.03.12"]
[Round "10"]
[White "PNEPaul"]
[Black "ZachHKL"]
[Result "0-1"]
[WhiteElo "1947"]
[BlackElo "2144"]
[TimeControl "180+1"]
[EndTime "15:52:03 PDT"]
[Termination "ZachHKL won by resignation"]

1. e4 {[%clk 0:03:00.9]} 1... c5 {[%clk 0:02:59]} 2. Nf3 {[%clk 0:03:00.7]} 2...
d6 {[%clk 0:02:58.9]} 3. d4 {[%clk 0:03:00.7]} 3... cxd4 {[%clk 0:02:59.8]} 4.
c3 {[%clk 0:03:00.6]} 4... dxc3 {[%clk 0:02:55.4]} 5. Nxc3 {[%clk 0:03:00.4]}
5... Nc6 {[%clk 0:02:54.2]} 6. Bc4 {[%clk 0:02:59.9]} 6... e6 {[%clk 0:02:53]}
7. O-O {[%clk 0:02:59.3]} 7... Nf6 {[%clk 0:02:53.1]} 8. Qe2 {[%clk 0:02:59.4]}
8... Be7 {[%clk 0:02:53.2]} 9. Rd1 {[%clk 0:02:59.1]} 9... Qc7 {[%clk
0:02:30.3]} 10. Bg5 {[%clk 0:02:56.7]} 10... a6 {[%clk 0:02:28.3]} 11. a3 {[%clk
0:02:56]} 11... h6 {[%clk 0:02:28.2]} 12. Bh4 {[%clk 0:02:54.6]} 12... O-O
{[%clk 0:02:22.5]} 13. Rac1 {[%clk 0:02:53.3]} 13... Rd8 {[%clk 0:02:15]} 14. b4
{[%clk 0:02:49.8]} 14... Qb6 {[%clk 0:02:07.3]} 15. Ba2 {[%clk 0:02:43.9]} 15...
Bd7 {[%clk 0:02:00.1]} 16. Bb1 {[%clk 0:02:43.2]} 16... Be8 {[%clk 0:01:53.5]}
17. Qc2 {[%clk 0:02:19.2]} 17... Rac8 {[%clk 0:01:44.9]} 18. h3 {[%clk
0:01:55.1]} 18... Rc7 {[%clk 0:01:33.3]} 19. Bxf6 {[%clk 0:01:38.2]} 19... Bxf6
{[%clk 0:01:29.9]} 20. Nd5 {[%clk 0:01:32.3]} 20... exd5 {[%clk 0:01:11.2]} 21.
exd5 {[%clk 0:01:28]} 21... g6 {[%clk 0:01:07.4]} 22. dxc6 {[%clk 0:01:19.9]}
22... Bxc6 {[%clk 0:01:04.7]} 23. Qd2 {[%clk 0:01:07.6]} 23... Bxf3 {[%clk
0:00:59.4]} 24. gxf3 {[%clk 0:01:07.4]} 24... Kg7 {[%clk 0:00:53.3]} 25. Be4
{[%clk 0:00:57]} 25... d5 {[%clk 0:00:45.7]} 26. Rxc7 {[%clk 0:00:41.8]} 26...
dxe4 {[%clk 0:00:43]} 27. Qxd8 {[%clk 0:00:37.6]} 27... Bxd8 {[%clk 0:00:41.5]}
28. Rxd8 {[%clk 0:00:36.7]} 28... Qxc7 {[%clk 0:00:39.4]} 0-1

[Event "Late-Titled-Tuesday-Blitz-March-12-2024"]
[Site "Chess.com"]
[Date "2024.03.12"]
[Round "10"]
[White "MaiqMaster"]
[Black "Bugcrusher"]
[Result "1-0"]
[WhiteElo "2429"]
[BlackElo "2512"]
[TimeControl "180+1"]
[EndTime "15:52:04 PDT"]
[Termination "MaiqMaster won by resignation"]

1. e4 {[%clk 0:03:00.9]} 1... c6 {[%clk 0:02:59.7]} 2. d4 {[%clk 0:02:59.5]}
2... d5 {[%clk 0:02:59.8]} 3. e5 {[%clk 0:02:59.9]} 3... c5 {[%clk 0:02:58.6]}
4. dxc5 {[%clk 0:02:59.9]} 4... e6 {[%clk 0:02:58.6]} 5. a3 {[%clk 0:02:59.2]}
5... Bxc5 {[%clk 0:02:57.8]} 6. Nf3 {[%clk 0:02:58.1]} 6... Ne7 {[%clk
0:02:54.6]} 7. Bd3 {[%clk 0:02:58.6]} 7... Nbc6 {[%clk 0:02:51.4]} 8. b4 {[%clk
0:02:56.1]} 8... Bb6 {[%clk 0:02:50.6]} 9. O-O {[%clk 0:02:55.1]} 9... Ng6
{[%clk 0:02:50]} 10. Bb2 {[%clk 0:02:54.1]} 10... Bc7 {[%clk 0:02:48.7]} 11. Re1
{[%clk 0:02:51]} 11... Nh4 {[%clk 0:02:45.6]} 12. Nxh4 {[%clk 0:02:48.1]} 12...
Qxh4 {[%clk 0:02:44.9]} 13. Nd2 {[%clk 0:02:45.5]} 13... O-O {[%clk 0:02:33.6]}
14. Nf3 {[%clk 0:02:44]} 14... Qh5 {[%clk 0:02:25.2]} 15. Qe2 {[%clk 0:02:29.7]}
15... f6 {[%clk 0:02:24.4]} 16. exf6 {[%clk 0:02:27.9]} 16... gxf6 {[%clk
0:02:23.2]} 17. Nd4 {[%clk 0:02:15.7]} 17... Qxe2 {[%clk 0:02:21.2]} 18. Rxe2
{[%clk 0:02:14.5]} 18... Nxd4 {[%clk 0:02:20]} 19. Bxd4 {[%clk 0:02:13.9]} 19...
e5 {[%clk 0:02:20]} 20. Bb2 {[%clk 0:02:12.2]} 20... e4 {[%clk 0:02:06.7]} 21.
Bb5 {[%clk 0:02:11.6]} 21... Be6 {[%clk 0:01:44.1]} 22. c4 {[%clk 0:02:07]}
22... a6 {[%clk 0:01:36.9]} 23. cxd5 {[%clk 0:01:58.6]} 23... Bxd5 {[%clk
0:01:36]} 24. Ba4 {[%clk 0:01:56.6]} 24... f5 {[%clk 0:01:27]} 25. Rd1 {[%clk
0:01:50.2]} 25... Be6 {[%clk 0:01:27]} 26. Red2 {[%clk 0:01:39.6]} 26... Rad8
{[%clk 0:01:23.9]} 27. Rxd8 {[%clk 0:01:36.9]} 27... Rxd8 {[%clk 0:01:23.9]} 28.
Rxd8+ {[%clk 0:01:37.4]} 28... Bxd8 {[%clk 0:01:24.2]} 29. Kf1 {[%clk
0:01:34.5]} 29... Bc4+ {[%clk 0:01:23.1]} 30. Ke1 {[%clk 0:01:34.6]} 30... Bb6
{[%clk 0:01:22.4]} 31. Bd1 {[%clk 0:01:29.2]} 31... Kf7 {[%clk 0:01:19.5]} 32.
Bh5+ {[%clk 0:01:22.1]} 32... Ke6 {[%clk 0:01:18.5]} 33. h4 {[%clk 0:01:11.4]}
33... f4 {[%clk 0:01:11.6]} 34. Bg4+ {[%clk 0:01:08.6]} 34... Kd6 {[%clk
0:01:08.4]} 35. Bf5 {[%clk 0:01:06.8]} 35... e3 {[%clk 0:01:01.7]} 36. fxe3
{[%clk 0:01:06.8]} 36... fxe3 {[%clk 0:01:00.9]} 37. Bxh7 {[%clk 0:01:03.9]}
37... Ke6 {[%clk 0:00:52.9]} 38. g4 {[%clk 0:00:58.6]} 38... e2 {[%clk
0:00:49.5]} 39. Bg8+ {[%clk 0:00:57.2]} 1-0